Workbook

Sheet 商住
A1: 江门市市区（蓬江区、江海区、新会区）2020年度商住用地供应计划
F2: 单位：亩
A3: 序号 | B3: 区域 | C3: 地块位置 | D3: 面积 | E3: 用途 | F3: 拟供地时间 | G3: 备注
A4: 1 | B4: 蓬江区 | C4: 体育路以东、华安路以南地段A地块 | D4: 49 | E4: 商住 | F4: 上半年
A5: 2 | B5: 蓬江区 | C5: 体育路以东、华安路以南地段B地块 | D5: 68 | E5: 商住 | F5: 上半年
A6: 3 | B6: 蓬江区 | C6: 华盛路以南、碧桂园世纪滨江西侧 | D6: 130 | E6: 商住 | F6: 上半年
A7: 4 | B7: 蓬江区 | C7: 新棠路南侧、陈垣文化广场西侧地段北地块 | D7: 92 | E7: 商住 | F7: 下半年
A8: 5 | B8: 蓬江区 | C8: 新棠路南侧、陈垣文化广场西侧地段南地块 | D8: 94 | E8: 商住 | F8: 下半年
A9: 6 | B9: 蓬江区 | C9: 杜阮松园商住小区“三旧”改造地块 | D9: 45 | E9: 商住 | F9: 下半年 | G9: “三旧”改造项目
A10: 7 | B10: 蓬江区 | C10: 水南南华旧村三旧改造地块 | D10: 38 | E10: 商住 | F10: 上半年 | G10: “三旧”改造项目
A11: 8 | B11: 蓬江区 | C11: 甘化片区 | D11: 160 | E11: 商住 | F11: 上半年 | G11: “三旧”改造项目
A12: 9 | B12: 蓬江区 | C12: 大湾里2、3号地段 | D12: 40 | E12: 商住 | F12: 上半年 | G12: “三旧”改造项目
A13: 10 | B13: 蓬江区 | C13: 潮连人才岛 | D13: 150 | E13: 商住 | F13: 下半年
A14: 蓬江区小计 | D14: =SUM(D4:D13) -> 866
A15: 11 | B15: 江海区 | C15: 五邑路与连海北路交界外海荔枝围地块 | D15: 123 | E15: 商住 | F15: 上半年
A16: 12 | B16: 江海区 | C16: 高新区2号地连海路与东升路交界东北侧地块 | D16: 59 | E16: 商住 | F16: 上半年
A17: 13 | B17: 江海区 | C17: 高新区3号地 | D17: 65 | E17: 商住 | F17: 下半年
A18: 14 | B18: 江海区 | C18: 高新区35号地地块一 | D18: 98 | E18: 商住 | F18: 上半年
A19: 15 | B19: 江海区 | C19: 红星村旧厂改造项目 | D19: 7 | E19: 商住 | F19: 下半年 | G19: “三旧”改造项目
A20: 16 | B20: 江海区 | C20: 面粉厂改造项目 | D20: 8 | E20: 商住 | F20: 下半年 | G20: “三旧”改造项目
A21: 17 | B21: 江海区 | C21: 江海区北滘南雄村第二围、第三围（土名）地段 | D21: 27 | E21: 商住 | F21: 下半年 | G21: “三旧”改造项目
A22: 18 | B22: 江海区 | C22: 江海区蓬苑小区A地块 | D22: 5 | E22: 商住 | F22: 下半年
A23: 19 | B23: 江海区 | C23: 江海区滘头第一围地段 | D23: 3 | E23: 商住 | F23: 下半年 | G23: 租赁住宅
A24: 江海区小计 | D24: =SUM(D15:D23) -> 395
A25: 20 | B25: 新会区 | C25: 新会经济开发区W02-12 | D25: 11 | E25: 商住 | F25: 下半年
A26: 21 | B26: 新会区 | C26: 新会经济开发区W02-11 | D26: 13 | E26: 商住 | F26: 下半年
A27: 22 | B27: 新会区 | C27: 枢纽新城启超大道以西、梅江河西侧、规划今华路南侧地块 | D27: 45 | E27: 商住 | F27: 上半年
A28: 23 | B28: 新会区 | C28: 碧桂园新仕界南侧地块 | D28: 77 | E28: 商住 | F28: 下半年
A29: 24 | B29: 新会区 | C29: 枢纽新城明德一路北侧、文华路东侧TOD地块 | D29: 116 | E29: 商住 | F29: 下半年
A30: 25 | B30: 新会区 | C30: 今古洲经济开发区地段 | D30: 61 | E30: 商住 | F30: 下半年 | G30: “三旧”改造项目
A31: 26 | B31: 新会区 | C31: 会城街道奇榜村地苑 | D31: 75 | E31: 商住 | F31: 下半年 | G31: “三旧”改造项目
A32: 新会区小计 | D32: =SUM(D25:D31) -> 398

Sheet 商服
A1: 江门市市区（蓬江区、江海区、新会区）2020年度商服用地供应计划
F2: 单位：亩
A3: 序号 | B3: 区域 | C3: 地块位置 | D3: 面积 | E3: 用途 | F3: 拟供地时间 | G3: 备注
A4: 1 | B4: 蓬江区 | C4: 总部经济地块 | D4: 56 | E4: 商服 | F4: 下半年
A5: 2 | B5: 蓬江区 | C5: 潮连塘边山霞里街沙头地块 | D5: 12 | E5: 商服 | F5: 下半年
A6: 3 | B6: 蓬江区 | C6: 蓬江区迎宾大道中以南新英侧地块地段 | D6: 4 | E6: 商服 | F6: 下半年
A7: 4 | B7: 蓬江区 | C7: 甘化片区三旧改造 | D7: 102 | E7: 商服 | F7: 上半年
A8: 蓬江区小计 | D8: =SUM(D4:D7) -> 174
A9: 5 | B9: 江海区 | C9: 高新区4号地地块 | D9: 36 | E9: 商服 | F9: 下半年
A10: 6 | B10: 江海区 | C10: 江海区新民桥东北侧地块 | D10: 45 | E10: 商服 | F10: 下半年
A11: 7 | B11: 江海区 | C11: 高新区43号地（25号加油站点） | D11: 25 | E11: 商服 | F11: 上半年
A12: 8 | B12: 江海区 | C12: 滘头联星经济合作社“三旧”改造项目 | D12: 28 | E12: 商服 | F12: 下半年 | G12: “三旧”改造项目
A13: 9 | B13: 江海区 | C13: 新民股份合作经济联社社“三旧”改造项目 | D13: 28 | E13: 商服 | F13: 下半年 | G13: “三旧”改造项目
A14: 江海区小计 | D14: =SUM(D9:D13) -> 162
A15: 10 | B15: 新会区 | C15: 新会经济开发区W02-6-1 | D15: 6 | E15: 商服 | F15: 下半年
A16: 11 | B16: 新会区 | C16: 新会区大泽镇五和管理区 | D16: 11 | E16: 商服 | F16: 上半年 | G16: “三旧”改造项目
A17: 12 | B17: 新会区 | C17: 古井镇古泗村灰炉前（土名） | D17: 3 | E17: 商服 | F17: 下半年
A18: 13 | B18: 新会区 | C18: 罗坑经济联合社下博（土名） | D18: 5 | E18: 商服 | F18: 下半年
A19: 14 | B19: 新会区 | C19: 罗坑镇陈冲村锦江前（土名） | D19: 10 | E19: 商服 | F19: 下半年
A20: 15 | B20: 新会区 | C20: 石板沙村沙头围 | D20: 111 | E20: 商服 | F20: 下半年
A21: 16 | B21: 新会区 | C21: 洋美村茶园社公路上（土名）地块 | D21: 5 | E21: 商服 | F21: 上半年 | G21: “三旧”改造项目
A22: 17 | B22: 新会区 | C22: 双水镇龙脊村老鼠尾(土名） | D22: 55 | E22: 商服 | F22: 上半年 | G22: “三旧”改造项目
A23: 18 | B23: 新会区 | C23: 司前镇石名村委会圣堂前（土名） | D23: 7 | E23: 商服 | F23: 下半年
A24: 19 | B24: 新会区 | C24: 今洲路南面片区地块（农商行地块南侧） | D24: 15 | E24: 商服 | F24: 下半年
A25: 20 | B25: 新会区 | C25: 今洲路南面片区地块（农商行地块西侧） | D25: 30 | E25: 商服 | F25: 下半年
A26: 21 | B26: 新会区 | C26: 枢纽新城启超大道东侧、南湖北侧地块 | D26: 54 | E26: 商服 | F26: 下半年
A27: 新会区小计 | D27: =SUM(D15:D26) -> 311

Sheet 工业
A1: 江门市市区（蓬江区、江海区、新会区）2020年度工业用地供应计划
F2: 单位：亩
A3: 序号 | B3: 区域 | C3: 地块位置 | D3: 面积 | E3: 用途 | F3: 拟供地时间 | G3: 备注
A4: 1 | B4: 蓬江区 | C4: 堡莲路以南、金桐三路北以东 | D4: 143 | E4: 工业 | F4: 上半年
A5: 2 | B5: 蓬江区 | C5: 金桐三路北地块 | D5: 25 | E5: 工业 | F5: 上半年
A6: 3 | B6: 蓬江区 | C6: 堡莲路以东、三堡六路以北 | D6: 107 | E6: 工业 | F6: 上半年
A7: 4 | B7: 蓬江区 | C7: 堡莲路以东、江顺大道以北 | D7: 125 | E7: 工业 | F7: 上半年 | G7: 三堡留用地
A8: 5 | B8: 蓬江区 | C8: 莲塘二路以南、金桐八路以东 | D8: 124 | E8: 工业 | F8: 下半年 | G8: 莲塘留用地
A9: 6 | B9: 蓬江区 | C9: 莲塘三路以南、堡莲路以东 | D9: 24 | E9: 工业 | F9: 下半年
A10: 7 | B10: 蓬江区 | C10: 蓬江区棠下镇江沙示范园区丰盛大道以南，堡莲路以东地段 | D10: 84 | E10: 工业 | F10: 下半年
A11: 8 | B11: 蓬江区 | C11: 蓬江区棠下镇江沙示范园区海信大道以南，金桐八路以西地段 | D11: 80 | E11: 工业 | F11: 下半年
A12: 9 | B12: 蓬江区 | C12: 骑龙山工业区 | D12: 12 | E12: 工业 | F12: 下半年
A13: 10 | B13: 蓬江区 | C13: 骑龙山工业区 | D13: 12 | E13: 工业 | F13: 下半年
A14: 11 | B14: 蓬江区 | C14: 龙眠李坑（土名） | D14: 41 | E14: 工业 | F14: 下半年
A15: 12 | B15: 蓬江区 | C15: 松岭烂头山（土名） | D15: 12 | E15: 工业 | F15: 下半年
A16: 13 | B16: 蓬江区 | C16: 荷塘镇东堤一路为民工业区鹤咀一带地段 | D16: 41 | E16: 工业 | F16: 下半年
A17: 14 | B17: 蓬江区 | C17: 荷塘镇马山工业开发区 | D17: 38 | E17: 工业 | F17: 下半年
A18: 15 | B18: 蓬江区 | C18: 荷塘镇马山工业开发区 | D18: 11 | E18: 工业 | F18: 下半年
A19: 16 | B19: 蓬江区 | C19: 荷塘镇马山工业开发区 | D19: 28 | E19: 工业 | F19: 下半年
A20: 17 | B20: 蓬江区 | C20: 荷塘镇禾冈村大坦路 | D20: 11 | E20: 工业 | F20: 下半年
A21: 18 | B21: 蓬江区 | C21: 荷塘镇为民 | D21: 25 | E21: 工业 | F21: 下半年
A22: 19 | B22: 蓬江区 | C22: 蓬江区荷塘镇南华西路与信诚路交叉口东南侧地段 | D22: 120 | E22: 工业 | F22: 上半年
A23: 20 | B23: 蓬江区 | C23: 蓬江区荷塘镇南华西路南侧地段 | D23: 30 | E23: 工业 | F23: 上半年
A24: 蓬江区小计 | D24: =SUM(D4:D23) -> 1093
A25: 21 | B25: 江海区 | C25: 江海区江睦路与新港路交界西北侧地块 | D25: 86 | E25: 工业 | F25: 下半年
A26: 22 | B26: 江海区 | C26: 云沁路与江睦路交界西南侧地块旁及云沁路与柏凌路交界处东北处地块 | D26: 204 | E26: 工业 | F26: 下半年
A27: 23 | B27: 江海区 | C27: 江门高新区连海路与彩虹路交界处东北侧地块 | D27: 20 | E27: 工业 | F27: 上半年
A28: 24 | B28: 江海区 | C28: 高新区27号地 | D28: 224 | E28: 工业 | F28: 下半年
A29: 25 | B29: 江海区 | C29: 高新区16号地地块一 | D29: 99 | E29: 工业 | F29: 下半年
A30: 26 | B30: 江海区 | C30: 高新区16号地地块二 | D30: 111 | E30: 工业 | F30: 下半年
A31: 27 | B31: 江海区 | C31: 高新区31号地东升路南侧地块 | D31: 19 | E31: 工业 | F31: 上半年
A32: 28 | B32: 江海区 | C32: 高新区46号地金羚北侧 | D32: 33 | E32: 工业 | F32: 上半年
A33: 29 | B33: 江海区 | C33: 高新区连海路与新港路交界西北侧地块 | D33: 20 | E33: 工业 | F33: 上半年
A34: 江海区小计 | D34: =SUM(D25:D33) -> 816
A35: 30 | B35: 新会区 | C35: 会城街道潭冲村曾门头（土名） | D35: 45 | E35: 工业 | F35: 下半年
A36: 31 | B36: 新会区 | C36: 新会经济开发区临港工业区T44-02-2 | D36: 48 | E36: 工业 | F36: 上半年
A37: 32 | B37: 新会区 | C37: 广东轨道交通产业园XH02-N-03-b6地块 | D37: 50 | E37: 工业 | F37: 下半年
A38: 33 | B38: 新会区 | C38: 张村银湖水库 | D38: 191 | E38: 工业 | F38: 上半年
A39: 34 | B39: 新会区 | C39: 大泽镇潮透村扒船岗（土名） | D39: 50 | E39: 工业 | F39: 下半年
A40: 35 | B40: 新会区 | C40: 大泽镇冷水农场（土名） | D40: 47 | E40: 工业 | F40: 下半年
A41: 36 | B41: 新会区 | C41: 大泽镇冷水农场（土名） | D41: 46 | E41: 工业 | F41: 上半年
A42: 37 | B42: 新会区 | C42: 大泽镇冷水农场（土名） | D42: 118 | E42: 工业 | F42: 上半年
A43: 38 | B43: 新会区 | C43: 古井镇洲朗村双冲南、农场围（土名） | D43: 22 | E43: 工业 | F43: 下半年
A44: 39 | B44: 新会区 | C44: 古井镇官冲村矿田、中行田（土名） | D44: 159 | E44: 工业 | F44: 下半年
A45: 40 | B45: 新会区 | C45: 古井镇官冲村大埂、矿田、后坑（土名） | D45: 72 | E45: 工业 | F45: 下半年
A46: 41 | B46: 新会区 | C46: 古井镇官冲村螃蟹口、交马坪、大交口、高埔、旗杆山（土名） | D46: 400 | E46: 工业 | F46: 下半年
A47: 42 | B47: 新会区 | C47: 古井镇官冲村后坑（土名） | D47: 85 | E47: 工业 | F47: 下半年
A48: 43 | B48: 新会区 | C48: 古井镇官冲村高埔、青草塘、读书坪（土名） | D48: 107 | E48: 工业 | F48: 下半年
A49: 44 | B49: 新会区 | C49: 罗坑镇芦冲村子营山（土名） | D49: 68 | E49: 工业 | F49: 下半年
A50: 45 | B50: 新会区 | C50: 罗坑镇芦冲村子营山（土名） | D50: 72 | E50: 工业 | F50: 下半年
A51: 46 | B51: 新会区 | C51: 罗坑镇芦冲村子营山（土名） | D51: 73 | E51: 工业 | F51: 下半年
A52: 47 | B52: 新会区 | C52: 罗坑镇芦冲村子营山（土名） | D52: 121 | E52: 工业 | F52: 下半年
A53: 48 | B53: 新会区 | C53: 睦洲镇莲子塘村顷二围 | D53: 43 | E53: 工业 | F53: 下半年
A54: 49 | B54: 新会区 | C54: 睦洲镇牛古田村大围 | D54: 83 | E54: 工业 | F54: 上半年
A55: 50 | B55: 新会区 | C55: 睦洲镇新沙村沙头低地 | D55: 16 | E55: 工业 | F55: 下半年
A56: 51 | B56: 新会区 | C56: 睦洲镇睦洲村合昌围 | D56: 13 | E56: 工业 | F56: 下半年
A57: 52 | B57: 新会区 | C57: 睦洲镇南安村元字围 | D57: 44 | E57: 工业 | F57: 上半年
A58: 53 | B58: 新会区 | C58: 三江镇沙岗村皮子一红门楼（土名)地块 | D58: 87 | E58: 工业 | F58: 上半年
A59: 54 | B59: 新会区 | C59: 三江镇官田村坑底洋、冲下大围（土名）沙岗村皮子1社红门楼（土名）地块 | D59: 20 | E59: 工业 | F59: 下半年
A60: 55 | B60: 新会区 | C60: 沙堆镇梅阁村台港围（土名） | D60: 38 | E60: 工业 | F60: 下半年
A61: 56 | B61: 新会区 | C61: 沙堆镇那伏村铲美（土名） | D61: 85 | E61: 工业 | F61: 上半年
A62: 57 | B62: 新会区 | C62: 双水镇东凌经济联合社竹篙塍（土名） | D62: 6 | E62: 工业 | F62: 下半年
A63: 58 | B63: 新会区 | C63: 司前镇司前林场白银坑、坪头山（土名）； 司前镇石名村坪头山、白银坑、烂头山、罩山（土名） | D63: 280 | E63: 工业 | F63: 下半年
A64: 59 | B64: 新会区 | C64: 司前镇司前村委会双二村民小组横岭（土名） | D64: 6 | E64: 工业 | F64: 下半年
A65: 60 | B65: 新会区 | C65: 司前镇林场长合山、白鸽笼山(土名） | D65: 40 | E65: 工业 | F65: 下半年
A66: 61 | B66: 新会区 | C66: 司前镇白庙村长合门口、狗门岗、长合企岭、旧总林、大坡笼、梅坪岗（土名） | D66: 30 | E66: 工业 | F66: 下半年
A67: 62 | B67: 新会区 | C67: 崖门镇登高石工业园(旧玻璃马赛克厂） | D67: 68 | E67: 工业 | F67: 上半年
A68: 63 | B68: 新会区 | C68: 崖门镇坑口村、水背村 | D68: 22 | E68: 工业 | F68: 下半年
A69: 新会区小计 | D69: =SUM(D35:D68) -> 2657

Sheet 公共
A1: 江门市市区（蓬江区、江海区、新会区）2020年度公共管理与公共服务用地供应计划
E2: 单位：亩
A3: 序号 | B3: 区域 | C3: 地块位置 | D3: 面积 | E3: 用途 | F3: 备注
A4: 1 | B4: 蓬江区 | C4: 东风大道侧 | D4: 4 | E4: 教育用地
A5: 2 | B5: 蓬江区 | C5: 东风大道侧 | D5: 0.4 | E5: 教育用地
A6: 3 | B6: 蓬江区 | C6: 江门大道西侧 | D6: 9 | E6: 机关团体用地
A7: 4 | B7: 蓬江区 | C7: 棠下三堡地段 | D7: 25 | E7: 道路用地
A8: 5 | B8: 蓬江区 | C8: 棠下金桐三路地段 | D8: 41 | E8: 道路用地
A9: 6 | B9: 蓬江区 | C9: 荷塘镇塔岗地段 | D9: 2 | E9: 公共服务设施用地
A10: 7 | B10: 蓬江区 | C10: 荷塘镇高村 | D10: 82 | E10: 教育用地
A11: 8 | B11: 蓬江区 | C11: 广场东路侧 | D11: 272 | E11: 公园与绿地
A12: 9 | B12: 蓬江区 | C12: 迎宾大道北侧 | D12: 25 | E12: 公园与绿地
A13: 10 | B13: 蓬江区 | C13: 迎宾大道北侧 | D13: 11 | E13: 公园与绿地
A14: 11 | B14: 蓬江区 | C14: 建设路地段侧 | D14: 11 | E14: 公园与绿地
A15: 12 | B15: 蓬江区 | C15: 江门大道 | D15: 26 | E15: 道路
A16: 13 | B16: 蓬江区 | C16: 东风大道 | D16: 4 | E16: 道路
A17: 14 | B17: 蓬江区 | C17: 里村大道、育德西延线 | D17: 41 | E17: 道路
A18: 15 | B18: 蓬江区 | C18: 杜阮北一路 | D18: 0.6 | E18: 道路
A19: 16 | B19: 蓬江区 | C19: 龙湾路地段 | D19: 23 | E19: 绿地、道路
A20: 17 | B20: 蓬江区 | C20: 甘化厂制糖车间地块 | D20: 28 | E20: 文化设施用地
A21: 18 | B21: 蓬江区 | C21: 甘化厂片区 | D21: 27 | E21: 医疗用地
A22: 19 | B22: 蓬江区 | C22: 篁庄大道西延线 | D22: 65 | E22: 道路
A23: 20 | B23: 蓬江区 | C23: 建设三路篁庄考场地块 | D23: 60 | E23: 教育用地
A24: 21 | B24: 蓬江区 | C24: 迎宾大道西胜利加油站西南侧地段 | D24: 9 | E24: 公交站场
A25: 22 | B25: 蓬江区 | C25: 环市二路侧 | D25: 28 | E25: 医疗用地
A26: 23 | B26: 蓬江区 | C26: 杜阮镇中和村地段 | D26: 24 | E26: 公用设施用地
A27: 24 | B27: 蓬江区 | C27: 发展大道北侧 | D27: 73 | E27: 公园与绿地
A28: 蓬江区小计 | D28: =SUM(D4:D27) -> 891
A29: 25 | B29: 江海区 | C29: 滘北观音坑地段 | D29: 3 | E29: 机关团体
A30: 26 | B30: 江海区 | C30: 江海区礼乐街道 | D30: 19 | E30: 道路用地
A31: 27 | B31: 江海区 | C31: 新民桥以北道路 | D31: 12 | E31: 道路用地
A32: 28 | B32: 江海区 | C32: 会港大道北侧 | D32: 7 | E32: 道路用地
A33: 29 | B33: 江海区 | C33: 高新区26号地 | D33: 53 | E33: 道路用地
A34: 30 | B34: 江海区 | C34: 江珠高速以北 | D34: 9 | E34: 道路用地
A35: 31 | B35: 江海区 | C35: 五邑路以北 | D35: 15 | E35: 道路用地
A36: 32 | B36: 江海区 | C36: 会港大道以北 | D36: 3 | E36: 道路用地
A37: 33 | B37: 江海区 | C37: 高新区3号地 | D37: 14 | E37: 道路用地
A38: 34 | B38: 江海区 | C38: 连海路东侧地段 | D38: 12 | E38: 道路用地
A39: 35 | B39: 江海区 | C39: 高新区规划用地 3 号地地段 | D39: 29 | E39: 水工建筑用地
A40: 36 | B40: 江海区 | C40: 一行路地段 | D40: 103 | E40: 道路用地
A41: 37 | B41: 江海区 | C41: 南山路地段 | D41: 427 | E41: 道路用地
A42: 38 | B42: 江海区 | C42: 礼乐大宝围地段 | D42: 88 | E42: 公用设施用地
A43: 39 | B43: 江海区 | C43: 江海区横坑地段 | D43: 59 | E43: 公园与绿地
A44: 40 | B44: 江海区 | C44: 江海路侧地段 | D44: 31 | E44: 公园与绿地
A45: 江海区小计 | D45: =SUM(D29:D44) -> 884
A46: 41 | B46: 新会区 | C46: 会城街道尚雅小学南侧地块 | D46: 10 | E46: 教育用地
A47: 新会区小计 | D47: =SUM(D46:D46) -> 10

Sheet 汇总表
A1: 江门市市区（蓬江区、江海区、新会区）2020年度国有建设用地供应计划表
A2: 单位：亩
B3: 用途 | C3: 合计 | D3: 商服用地 | E3: 工业用地 | F3: 商住用地 | G3: 公共管理与公共服务
A4: 区域
A5: 合计 | C5: =SUM(C6:C8) -> 8657 | D5: =SUM(D6:D8) -> 647 | E5: 4566 | F5: 1659 | G5: 1785
A6: 蓬江区 | C6: =SUM(D6:G6) -> 3024 | D6: 174 | E6: 1093 | F6: 866 | G6: 891
A7: 江海区 | C7: =SUM(D7:G7) -> 2257 | D7: 162 | E7: 816 | F7: 395 | G7: 884
A8: 新会区 | C8: 3376 | D8: 311 | E8: 2657 | F8: 398 | G8: 10
